fUSD/lending_fUSD_20250907
["ID","MTS","AMOUNT","RATE_DAILY","PERIOD"]
[383956484,1757208641627,-151.0,0.00031022,2]
[383956485,1757208641637,-151.0,0.00031022,2]
[383956486,1757208641647,-151.0,0.00031022,2]
[383956487,1757208641657,-151.0,0.00031022,2]
[383956488,1757208641667,-151.0,0.00031022,2]
[383956489,1757208641676,-151.0,0.00031022,2]
[383956490,1757208641686,-151.0,0.00031022,2]
[383956491,1757208641697,-151.0,0.00031022,2]
[383956492,1757208641707,-151.0,0.00031022,2]
[383956493,1757208641716,-151.0,0.00031022,2]
[383956494,1757208641726,-151.0,0.00031022,2]
[383956495,1757208641735,-1000.0,0.00031022,2]
[383956496,1757208641745,-440.49444121,0.00031022,2]
[383956497,1757208641754,-1000.0,0.00031022,2]
[383956498,1757208641764,-1000.0,0.00031022,2]
[383956499,1757208641773,-151.0,0.00031022,2]
[383956500,1757208641783,-1000.0,0.00031022,2]
[383956501,1757208641793,-500.0,0.00031022,2]
[383956502,1757208641803,-1000.0,0.00031022,2]
[383956503,1757208641812,-500.0,0.00031022,2]
[383956504,1757208641822,-1000.0,0.00031022,2]
[383956505,1757208641832,-500.0,0.00031022,2]
[383956506,1757208641842,-200.0,0.00031022,2]
[383956507,1757208641852,-1000.0,0.00031022,2]
[383956508,1757208641862,-500.0,0.00031022,2]
[383956509,1757208641871,-1000.0,0.00031022,2]
[383956510,1757208641880,-500.0,0.00031022,2]
[383956511,1757208641890,-250.0,0.00031022,2]
[383956512,1757208641900,-1000.0,0.00031022,2]
[383956513,1757208641909,-500.0,0.00031022,2]
[383956514,1757208641919,-250.0,0.00031022,2]
[383956515,1757208641928,-1000.0,0.00031022,2]
[383956516,1757208641938,-500.0,0.00031022,2]
[383956517,1757208641948,-250.0,0.00031022,2]
[383956518,1757208641958,-209.77701247,0.00031022,2]
[383956519,1757208641968,-500.0,0.00031022,2]
[383956520,1757208641978,-250.0,0.00031022,2]
[383956521,1757208641987,-500.0,0.00031022,2]
[383956522,1757208641997,-250.0,0.00031022,2]
[383956523,1757208642006,-500.0,0.00031022,2]
[383956524,1757208642016,-250.0,0.00031022,2]
[383956525,1757208642026,-500.0,0.00031022,2]
[383956526,1757208642036,-250.0,0.00031022,2]
[383956527,1757208642046,-500.0,0.00031022,2]
[383956528,1757208642055,-250.0,0.00031022,2]
[383956529,1757208642065,-250.0,0.00031022,2]
[383956530,1757208642076,-250.0,0.00031022,2]
[383956531,1757208642085,-250.0,0.00031022,2]
[383956532,1757208642095,-250.0,0.00031022,2]
[383956533,1757208642105,-250.0,0.00031022,2]
[383956534,1757208642114,-250.0,0.00031022,2]
[383956535,1757208642124,-250.0,0.00031022,2]
[383956536,1757208642134,-250.0,0.00031022,2]
[383956537,1757208642143,-250.0,0.00031022,2]
[383956538,1757208642152,-250.0,0.00031022,2]
[383956539,1757208642162,-250.0,0.00031022,2]
[383956540,1757208642172,-250.0,0.00031022,2]
[383956541,1757208642181,-250.0,0.00031022,2]
[383956542,1757208642190,-200.0,0.00031022,2]
[383956543,1757208642200,-250.0,0.00031022,2]
[383956544,1757208642210,-250.0,0.00031022,2]
[383956545,1757208642219,-250.0,0.00031022,2]
[383956546,1757208642230,-250.0,0.00031022,2]
[383956547,1757208642239,-250.0,0.00031022,2]
[383956548,1757208642249,-250.0,0.00031022,2]
[383956549,1757208642259,-250.0,0.00031022,2]
[383956550,1757208642269,-250.0,0.00031022,2]
[383956551,1757208642279,-250.0,0.00031022,2]
[383956552,1757208642288,-250.0,0.00031022,2]
[383956553,1757208642298,-250.0,0.00031022,2]
[383956554,1757208642307,-250.0,0.00031022,2]
[383956555,1757208642317,-250.0,0.00031022,2]
[383956556,1757208642327,-250.0,0.00031022,2]
[383956557,1757208642337,-250.0,0.00031022,2]
[383956558,1757208642347,-250.0,0.00031022,2]
[383956559,1757208642357,-250.0,0.00031022,2]
[383956560,1757208642368,-250.0,0.00031022,2]
[383956561,1757208642378,-250.0,0.00031022,2]
[383956562,1757208642388,-1425.0,0.00031027,2]
[383956563,1757208642397,-1099.56158289,0.0003104,2]
[383956564,1757208642407,-150.0,0.00031041,2]
[383956565,1757208642417,-150.0,0.00031041,2]
[383956566,1757208642427,-150.0,0.00031041,2]
[383956567,1757208642437,-500.0,0.00031041,2]
[383956568,1757208642447,-150.0,0.00031041,2]
[383956569,1757208642457,-247.03185539,0.00031041,2]
[383956570,1757208642467,-500.0,0.00031041,2]
[383956571,1757208642477,-150.0,0.00031041,2]
[383956572,1757208642487,-500.0,0.00031041,2]
[383956573,1757208642497,-500.0,0.00031041,2]
[383956574,1757208642506,-150.0,0.00031041,2]
[383956575,1757208642516,-150.0,0.00031041,2]
[383956576,1757208642525,-150.0,0.00031041,2]
[383956577,1757208642535,-150.0,0.00031041,2]
[383956578,1757208642545,-150.0,0.00031041,2]
[383956579,1757208642555,-150.0,0.00031041,2]
[383956580,1757208642564,-150.0,0.00031041,2]
[383956581,1757208642574,-150.0,0.00031041,2]
[383956582,1757208642583,-152.87835205,0.00031041,2]
[383956583,1757208642593,-802.0,0.00031041,2]
[383956584,1757208642603,-470.72,0.00031041,2]
[383956585,1757208642618,-470.72,0.00031041,2]
[383956586,1757208642628,-802.0,0.00031041,2]
[383956587,1757208642637,-802.0,0.00031041,2]
[383956588,1757208642646,-470.72,0.00031041,2]
[383956589,1757208642656,-470.72,0.00031041,2]
[383956590,1757208642665,-802.0,0.00031041,2]
[383956591,1757208642674,-470.72,0.00031041,2]
[383956592,1757208642683,-802.0,0.00031041,2]
[383956593,1757208642692,-470.72,0.00031041,2]
[383956594,1757208642701,-802.0,0.00031041,2]
[383956595,1757208642712,-802.0,0.00031041,2]
[383956596,1757208642722,-470.72,0.00031041,2]
[383956597,1757208642731,-336.82927465,0.00031073,5]
[383956598,1757208642740,-156.587,0.00031077,2]
[383956599,1757208642750,-150.0,0.00031112,7]
[383956600,1757208642760,-1164.215,0.0003112,28]
[383956601,1757208642770,-14412.13838645,0.00031126,2]
[383956602,1757208642780,-162.380719,0.00031132,2]
[383956603,1757208642789,-174.35,0.00031178,2]
[383956604,1757208642799,-174.35,0.00031178,2]
[383956605,1757208642809,-168.6,0.00031178,2]
[383956606,1757208642818,-168.3888056,0.00031187,2]
[383956607,1757208642828,-14412.13838645,0.00031237,2]
[383956608,1757208642838,-170.17006559,0.00031242,2]
[383956609,1757208642848,-309.31,0.00031271,30]
[383956610,1757208642859,-161.11,0.00031271,30]
[383956611,1757208642868,-150.0,0.00031315,2]
[383956612,1757208642879,-500.0,0.00031315,2]
[383956613,1757208642889,-500.0,0.00031315,2]
[383956614,1757208642899,-150.0,0.00031315,2]
[383956615,1757208642910,-500.0,0.00031315,2]
[383956616,1757208642921,-500.0,0.00031315,2]
[383956617,1757208642932,-155.03673841,0.00031315,2]
[383956618,1757208642942,-150.0,0.00031315,2]
[383956619,1757208642952,-152.97152478,0.00031315,2]
[383956620,1757208642962,-150.0,0.00031315,2]
[383956621,1757208642971,-152.67203989,0.00031315,2]
[383956622,1757208642981,-151.0,0.00031337,2]
[383956623,1757208642991,-195.282513,0.00031347,7]
[383956624,1757208643000,-14412.13838645,0.00031347,2]
[383956625,1757208643010,-1000.0,0.00031355,2]
[383956626,1757208643021,-771.23802929,0.00031361,2]
[383956627,1757208643035,-200.0,0.00031386,7]
[383956628,1757208643045,-944.51,0.00031388,2]
[383956629,1757208643055,-160.17465908,0.00031393,5]
[383956630,1757208643064,-500.0,0.00031393,5]
[383956631,1757208643074,-14090.95280124,0.000314,30]
[383956632,1757208643084,-3011.38049103,0.000314,30]
[383956633,1757208643094,-14412.13838645,0.00031458,2]
[383956634,1757208643103,-161.272246,0.0003147,3]
[383956635,1757208643113,-200.0,0.000315,11]
[383956636,1757208643122,-150.0,0.000315,2]
[383956637,1757208643132,-166.67,0.00031514,2]
[383956638,1757208643141,-4394.75830609,0.00031565,2]
[383956639,1757208643151,-14412.13838645,0.00031568,2]
[383956640,1757208643161,-151.0,0.0003157,2]
[383956641,1757208643170,-600.0,0.0003157,2]
[383956642,1757208643180,-151.0,0.0003157,2]
[383956643,1757208643189,-151.0,0.0003157,2]
[383956645,1757208643198,-150.0,0.00031575,2]
[383956646,1757208643207,-150.0,0.00031575,60]
[383956648,1757208643217,-251.61319408,0.00031575,60]
[383956650,1757208643227,-150.0,0.00031575,60]
[383956651,1757208643237,-500.0,0.00031575,60]
[383956652,1757208643247,-150.0,0.00031575,60]
[383956653,1757208643256,-500.0,0.00031575,60]
[383956654,1757208643266,-500.0,0.00031575,60]
[383956655,1757208643275,-500.0,0.00031575,60]
[383956656,1757208643285,-150.0,0.00031575,60]
[383956657,1757208643294,-150.0,0.00031575,60]
[383956658,1757208643304,-200.0,0.00031575,60]
[383956659,1757208643313,-500.0,0.00031575,60]
[383956661,1757208643323,-500.0,0.00031575,60]
[383956662,1757208643332,-150.0,0.00031575,60]
[383956664,1757208643343,-150.0,0.00031575,2]
[383956667,1757208643356,-150.0,0.00031575,2]
[383956668,1757208643365,-194.87,0.00031575,120]
[383956669,1757208643375,-150.0,0.00031589,2]
[383956673,1757208643612,-500.0,0.00031589,2]
[383956674,1757208643633,-500.0,0.00031589,2]
[383956675,1757208643643,-200.0,0.00031589,2]
[383956676,1757208643655,-500.0,0.00031589,2]
[383956677,1757208643665,-500.0,0.00031589,2]
[383956678,1757208643675,-150.0,0.00031589,2]
[383956679,1757208643686,-500.0,0.000316,11]
[383956680,1757208643696,-771.2380293,0.00031607,2]
[383956681,1757208643707,-3111.0,0.0003161,2]
[383956682,1757208643716,-277.35679052,0.0003161,2]
[383956683,1757208643726,-157.8,0.00031664,4]
[383956684,1757208643736,-4394.75830609,0.00031675,2]
[383956685,1757208643746,-14412.13838645,0.00031679,2]
[383956686,1757208643755,-3539.50754,0.0003168,2]
[383956687,1757208643765,-1425.0,0.00031685,2]
[383956688,1757208643775,-3613.434194,0.0003169,3]
[383956689,1757208643785,-212.67823062,0.00031699,2]
[383956690,1757208643794,-700.0,0.000317,11]
[383956691,1757208643804,-21680.52,0.000317,3]
[383956692,1757208643814,-3011.38049103,0.000317,3]
[383956693,1757208643823,-14412.13838645,0.00031789,2]
[383956694,1757208643833,-1000.0,0.000318,11]
[383956695,1757208643842,-1000.0,0.0003181,2]
[383956696,1757208643851,-159.38,0.00031843,2]
[383956697,1757208643861,-251.33219181,0.00031849,60]
[383956698,1757208643871,-500.0,0.00031849,60]
[383956699,1757208643881,-150.0,0.00031849,60]
[383956700,1757208643891,-500.0,0.00031849,60]
[383956701,1757208643902,-500.0,0.00031849,60]
[383956702,1757208643913,-500.0,0.00031849,60]
[383956703,1757208643923,-150.0,0.00031849,60]
[383956704,1757208643933,-150.0,0.00031849,60]
[383956705,1757208643943,-500.0,0.00031849,60]
[383956706,1757208643953,-500.0,0.00031849,60]
[383956708,1757208643963,-411.99607889,0.0003186,120]
[383956710,1757208643973,-150.0,0.00031863,2]
[383956712,1757208643982,-500.0,0.00031863,2]
[383956714,1757208643992,-500.0,0.00031863,2]
[383956716,1757208644001,-500.0,0.00031863,2]
[383956718,1757208644011,-500.0,0.00031863,2]
[383956720,1757208644020,-202.0992376,0.00031863,2]
[383956721,1757208644030,-151.0,0.00031885,2]
[383956723,1757208644040,-8789.51661218,0.0003189,2]
[383956725,1757208644050,-300.0,0.00031891,2]
[383956727,1757208644060,-150.0,0.00031895,120]
[383956729,1757208644070,-873.55559547,0.000319,2]
[383956731,1757208644080,-150.0,0.000319,2]
[383956733,1757208644089,-1591.0183,0.000319,10]
[383956735,1757208644099,-1200.0,0.000319,11]
[383956737,1757208644108,-311.48833461,0.000319,6]
[383956739,1757208644118,-2175.65800838,0.000319,2]
[383956741,1757208644127,-1300.76728048,0.000319,2]
[383956743,1757208644137,-255.1030362,0.000319,2]
[383956745,1757208644145,-202.26221386,0.000319,2]
[383956747,1757208644154,-3794.27715339,0.000319,2]
[383956749,1757208644164,-151.0,0.000319,7]
[383956751,1757208644173,-151.858967,0.000319,7]
[383956753,1757208644182,-9698.57871394,0.000319,2]
[383956754,1757208644191,-14412.13838645,0.000319,2]
[383956755,1757208644200,-6772.97876169,0.000319,2]
[383956756,1757208644210,-503.19899751,0.00031941,5]
[383956757,1757208644219,-150.0,0.00031958,2]
[383956758,1757208644229,-259.49938452,0.00031961,2]
[383956759,1757208644238,-300.0,0.00031962,10]
[383956760,1757208644247,-30763.3081426,0.00031963,2]
[383956761,1757208644257,-152.27,0.00031963,2]
[383956762,1757208644267,-330.73450968,0.00031963,2]
[383956763,1757208644276,-401.96963484,0.00031965,2]
[383956764,1757208644285,-473.20476001,0.00031968,2]
[383956765,1757208644295,-151.0,0.0003197,7]
[383956766,1757208644304,-544.43988517,0.0003197,2]
[383956767,1757208644314,-152.27,0.0003197,2]
[383956768,1757208644325,-308.85675385,0.00031972,10]
[383956769,1757208644334,-223.51517299,0.00031972,2]
[383956770,1757208644344,-20733.0,0.00031973,2]
[383956771,1757208644355,-37265.0,0.00031973,2]
[383956772,1757208644364,-269.29286367,0.00031973,5]
[383956773,1757208644374,-500.0,0.00031973,5]
[383956774,1757208644383,-500.0,0.00031973,5]
[383956775,1757208644393,-500.0,0.00031973,3]
[383956776,1757208644402,-500.0,0.00031973,5]
[383956777,1757208644411,-500.39292185,0.00031973,5]
[383956778,1757208644421,-296.61542135,0.00031973,5]
[383956779,1757208644430,-502.084834,0.00031973,5]
[383956780,1757208644440,-615.67501033,0.00031973,2]
[383956781,1757208644450,-686.91013549,0.00031975,2]
[383956782,1757208644459,-151.0,0.00031977,7]
[383956783,1757208644468,-758.14526065,0.00031978,2]
[383956784,1757208644478,-13184.2749183,0.00031978,2]
[383956785,1757208644488,-1177.0,0.00031979,2]
[383956786,1757208644498,-829.38038581,0.0003198,2]
[383956787,1757208644507,-151.0,0.0003198,7]
[383956788,1757208644517,-151.0,0.0003198,7]
[383956789,1757208644527,-180185.09055,0.0003198,2]
[383956790,1757208644537,-150764.558876,0.0003198,2]
[383956791,1757208644547,-195.78687301,0.00031981,3]
[383956792,1757208644556,-150.0,0.00031981,2]
[383956793,1757208644566,-151.0,0.00031987,7]
[383956794,1757208644575,-20795.1115692,0.00031988,2]
[383956795,1757208644584,-152.27,0.00031988,2]
[383956796,1757208644594,-5198.77789229,0.00031989,2]
[383956797,1757208644603,-300.0,0.00031989,10]
[383956798,1757208644617,-300.0,0.00031989,10]
[383956799,1757208644627,-151.0,0.0003199,7]
[383956800,1757208644636,-151.0,0.0003199,7]
[383956801,1757208644647,-151.0,0.0003199,7]
[383956802,1757208644659,-151.0,0.0003199,7]
[383956803,1757208644669,-151.0,0.0003199,7]
[383956804,1757208644679,-151.0,0.0003199,7]
[383956805,1757208644690,-151.0,0.0003199,7]
[383956806,1757208644699,-151.0,0.0003199,7]
[383956807,1757208644708,-151.0,0.0003199,7]
[383956808,1757208644718,-151.0,0.0003199,7]
[383956809,1757208644728,-151.0,0.0003199,7]
[383956810,1757208644738,-151.0,0.0003199,7]
[383956811,1757208644747,-151.0,0.0003199,7]
[383956812,1757208644756,-168.06141,0.0003199,7]
[383956813,1757208644766,-300.0,0.0003199,7]
[383956814,1757208644776,-151.0,0.0003199,7]
[383956815,1757208644785,-151.0,0.0003199,7]
[383956816,1757208644794,-151.0,0.0003199,7]
[383956817,1757208644804,-151.0,0.0003199,7]
[383956818,1757208644816,-151.0,0.0003199,7]
[383956819,1757208644828,-151.0,0.0003199,7]
[383956820,1757208644838,-151.0,0.0003199,7]
[383956821,1757208644848,-151.0,0.0003199,7]
[383956822,1757208644857,-151.0,0.0003199,7]
[383956823,1757208644867,-151.0,0.0003199,7]
[383956824,1757208644878,-151.0,0.0003199,5]
[383956825,1757208644889,-151.0,0.0003199,5]
[383956826,1757208644899,-88379.2241689,0.0003199,2]
[383956827,1757208644908,-151.0,0.0003199,7]
[383956828,1757208644918,-151.0,0.0003199,7]
[383956829,1757208644929,-151.0,0.0003199,7]
[383956830,1757208644939,-151.0,0.0003199,7]
[383956831,1757208644949,-289.4472,0.0003199,7]
[383956832,1757208644959,-152.27,0.0003199,2]
[383956833,1757208644969,-152.27,0.0003199,2]
[383956834,1757208644979,-152.27,0.0003199,2]
[383956835,1757208644990,-152.27,0.0003199,2]
[383956836,1757208645000,-152.27,0.0003199,2]
[383956837,1757208645010,-152.27,0.0003199,2]
[383956838,1757208645020,-152.27,0.0003199,2]
[383956839,1757208645030,-152.27,0.0003199,2]
[383956840,1757208645040,-152.27,0.0003199,2]
[383956841,1757208645049,-152.27,0.0003199,2]
[383956842,1757208645058,-152.27,0.0003199,2]
[383956843,1757208645068,-152.27,0.0003199,2]
[383956844,1757208645078,-152.27,0.0003199,2]
[383956845,1757208645089,-152.27,0.0003199,2]
[383956846,1757208645099,-158.131704,0.00031997,7]
[383956847,1757208645109,-151.0,0.00031997,7]
[383956848,1757208645119,-300.0,0.00031997,10]
[383956849,1757208645129,-300.0,0.00031997,10]
[383956850,1757208645139,-45434.5586558,0.00031998,2]
[383956851,1757208645148,-2042.4799104,0.00031998,2]
[383956852,1757208645158,-666.0,0.00031999,10]
[383956853,1757208645168,-666.0,0.00031999,10]
[383956854,1757208645178,-300.0,0.00031999,10]
[383956855,1757208645188,-300.0,0.00031999,10]
[383956856,1757208645198,-300.0,0.00031999,10]
[383956857,1757208645208,-666.0,0.00031999,10]
[383956858,1757208645218,-300.0,0.00031999,10]
[383956859,1757208645228,-666.0,0.00031999,10]
[383956860,1757208645238,-300.0,0.00031999,10]
[383956861,1757208645247,-666.0,0.00031999,10]
[383956862,1757208645258,-300.0,0.00031999,10]
[383956863,1757208645267,-300.0,0.00031999,10]
[383956864,1757208645277,-470.17578815,0.00031999,2]
[383956873,1757208649944,-153.0,0.00026412,2]
[383956874,1757208649954,-386.75642474,0.000319,2]
[383956875,1757208649964,-157.00381624,0.00031996,120]
[383956876,1757208649975,-29.82421185,0.00031999,2]
[383956877,1757208649985,-500.0,0.00031999,2]
[383956878,1757208649994,-150.0,0.00031999,2]
[383956879,1757208650004,-1175.0,0.00031999,7]
[383956880,1757208650015,-935.64415142,0.00032,5]
[383956881,1757208650091,-1688.35584858,0.00032,5]
[383956882,1757208650101,-2494.98270614,0.00032,2]
[383956883,1757208650113,-1540.21408135,0.00032,2]
[383956898,1757209303539,203.11,0.00014913,2]
[383956930,1757209831682,-392.0,0.00022985,2]
[383956931,1757209831693,-164.0,0.00023095,2]
[383956932,1757209831703,-228.293521,0.00024651,2]
[383956933,1757209831713,-992.85834733,0.000249,2]
[383956934,1757209831723,-300.0,0.00024999,2]
[383956935,1757209831733,-575.0,0.00024999,2]
[383956936,1757209831742,-10355.39665767,0.00025,2]
[383956937,1757209831754,-14655.63950685,0.00025,2]
[383956983,1757209839855,-60240.29979844,0.00025,2]
[383956984,1757209839867,-500.0,0.00026493,2]
[383956985,1757209839876,-151.41,0.0002676,2]
[383956986,1757209839886,-229.51,0.00026893,7]
[383956987,1757209839896,-420.0,0.00027082,2]
[383956988,1757209839906,-992.85834723,0.00027827,8]
[383956989,1757209839917,-170.57651086,0.00028169,2]
[383956990,1757209839927,-229.51,0.00028269,30]
[383956991,1757209839938,-250.0,0.00028966,2]
[383956992,1757209839949,-587.0,0.00029339,2]
[383956993,1757209839960,-687.47,0.00029346,2]
[383956995,1757209839969,-666.0,0.00029395,3]
[383956997,1757209839980,-197.37,0.00029395,120]
[383956999,1757209839995,-417.08,0.00029535,2]
[383957001,1757209840005,-160.0,0.0002955,7]
[383957003,1757209840014,-164.0,0.0002956,2]
[383957005,1757209840025,-229.51,0.00029645,30]
[383957008,1757209840035,-200.0,0.00029727,2]
[383957010,1757209840045,-152.0,0.00029792,3]
[383957012,1757209840055,-498.0,0.00029808,2]
[383957014,1757209840065,-1417.73,0.00029827,2]
[383957016,1757209840075,-291.66,0.00029843,2]
[383957018,1757209840085,-500.0,0.00029887,2]
[383957020,1757209840095,-163.0,0.0003,4]
[383957022,1757209840105,-1649.85,0.0003,2]
[383957024,1757209840115,-2000.0,0.0003,2]
[383957026,1757209840125,-2000.0,0.0003,2]
[383957028,1757209840134,-2000.0,0.0003,2]
[383957030,1757209840144,-2000.0,0.0003,2]
[383957032,1757209840154,-2000.0,0.0003,2]
[383957034,1757209840164,-1000.0,0.0003,2]
[383957036,1757209840174,-633.27,0.00030028,2]
[383957038,1757209840184,-510.46,0.00030028,2]
[383957040,1757209840194,-675.78,0.00030028,2]
[383957042,1757209840204,-400.0,0.00030028,2]
[383957043,1757209840214,-711.11,0.00030028,2]
[383957044,1757209840228,-400.0,0.00030028,2]
[383957045,1757209840238,-439.2,0.00030028,2]
[383957046,1757209840248,-400.0,0.00030121,2]
[383957047,1757209840258,-400.0,0.00030121,2]
[383957048,1757209840268,-695.61,0.00030121,2]
[383957049,1757209840278,-629.85,0.00030121,2]
[383957050,1757209840288,-599.82399118,0.00030128,2]
[383957051,1757209840299,-637.82782755,0.00030128,2]
[383957052,1757209840310,-517.77825943,0.00030128,2]
[383957053,1757209840319,-1313.6,0.00030129,2]
[383957054,1757209840329,-400.0,0.00030129,2]
[383957055,1757209840339,-400.0,0.00030129,2]
[383957056,1757209840350,-820.24,0.00030129,2]
[383957057,1757209840360,-400.0,0.00030129,2]
[383957058,1757209840370,-400.0,0.00030129,2]
[383957059,1757209840379,-400.0,0.00030129,2]
[383957060,1757209840389,-400.0,0.00030129,2]
[383957061,1757209840399,-400.0,0.00030129,2]
[383957062,1757209840408,-400.0,0.00030129,2]
[383957064,1757209840418,-400.0,0.00030129,2]
[383957065,1757209840428,-400.0,0.00030129,2]
[383957066,1757209840438,-400.0,0.00030129,2]
[383957067,1757209840451,-400.0,0.00030129,2]
[383957068,1757209840463,-400.0,0.00030129,2]
[383957069,1757209840473,-688.61,0.00030129,2]
[383957070,1757209840484,-1541.11,0.00030129,2]
[383957071,1757209840494,-400.0,0.00030129,2]
[383957072,1757209840504,-400.0,0.00030129,2]
[383957073,1757209840515,-497.45,0.00030129,2]
[383957074,1757209840525,-553.65,0.00030129,2]
[383957075,1757209840535,-400.0,0.00030129,2]
[383957076,1757209840547,-402.09850579,0.00030129,2]
[383957077,1757209840558,-400.0,0.00030129,2]
[383957078,1757209840568,-400.0,0.00030129,2]
[383957079,1757209840581,-1087.81,0.00030129,2]
[383957080,1757209840591,-520.92730264,0.00030129,2]
[383957081,1757209840600,-400.0,0.00030129,2]
[383957082,1757209840610,-474.71,0.00030129,2]
[383957083,1757209840620,-400.0,0.00030129,2]
[383957084,1757209840630,-400.0,0.00030129,2]
[383957085,1757209840641,-400.0,0.00030129,2]
[383957086,1757209840651,-400.0,0.00030129,2]
[383957087,1757209840661,-1168.23,0.00030129,2]
[383957088,1757209840671,-500.0,0.00030129,2]
[383957089,1757209840681,-739.05,0.00030129,2]
[383957090,1757209840691,-400.0,0.00030129,2]
[383957091,1757209840702,-417.56,0.00030129,2]
[383957092,1757209840712,-453.45,0.00030129,2]
[383957093,1757209840722,-1166.95,0.00030129,2]
[383957094,1757209840734,-400.0,0.00030129,2]
[383957095,1757209840744,-1219.37,0.00030129,2]
[383957096,1757209840755,-519.97,0.00030129,2]
[383957097,1757209840765,-400.0,0.00030129,2]
[383957098,1757209841197,-1175.07,0.00030129,2]
[383957099,1757209841208,-400.0,0.00030129,2]
[383957100,1757209841220,-400.0,0.00030129,2]
[383957101,1757209841234,-520.40651576,0.00030129,2]
[383957102,1757209841244,-400.0,0.00030129,2]
[383957103,1757209841254,-400.0,0.00030129,2]
[383957104,1757209841264,-400.0,0.00030129,2]
[383957105,1757209841273,-400.0,0.00030129,2]
[383957106,1757209841283,-400.0,0.00030129,2]
[383957107,1757209841293,-400.0,0.00030129,2]
[383957108,1757209841303,-400.0,0.00030129,2]
[383957109,1757209841314,-401.97,0.00030129,2]
[383957110,1757209841324,-472.87,0.00030129,2]
[383957111,1757209841334,-1070.74,0.00030129,2]
[383957112,1757209841344,-400.0,0.00030129,2]
[383957113,1757209841354,-400.0,0.00030129,2]
[383957114,1757209841363,-400.0,0.00030129,2]
[383957115,1757209841372,-400.0,0.00030129,2]
[383957116,1757209841383,-400.0,0.00030129,2]
[383957117,1757209841393,-400.0,0.00030129,2]
[383957118,1757209841402,-880.85,0.00030129,2]
[383957119,1757209841411,-400.0,0.00030129,2]
[383957120,1757209841421,-400.0,0.00030129,2]
[383957121,1757209841431,-435.77,0.00030129,2]
[383957122,1757209841441,-984.92,0.00030129,2]
[383957123,1757209841451,-948.03,0.00030129,2]
[383957124,1757209841460,-530.92,0.00030129,2]
[383957125,1757209841470,-400.0,0.00030129,2]
[383957126,1757209841479,-1077.33,0.00030129,2]
[383957127,1757209841489,-426.04,0.00030129,2]
[383957128,1757209841499,-942.88,0.00030129,2]
[383957129,1757209841509,-400.0,0.00030129,2]
[383957130,1757209841519,-400.0,0.00030129,2]
[383957131,1757209841528,-400.0,0.00030129,2]
[383957132,1757209841538,-400.0,0.00030129,2]
[383957133,1757209841547,-400.0,0.00030129,2]
[383957134,1757209841557,-400.0,0.00030129,2]
[383957135,1757209841568,-455.79,0.00030129,2]
[383957136,1757209841577,-400.0,0.00030129,2]
[383957137,1757209841587,-400.0,0.00030129,2]
[383957138,1757209841597,-457.59,0.00030129,2]
[383957139,1757209841606,-400.0,0.00030129,2]
[383957140,1757209841615,-400.0,0.00030129,2]